[Event "Titled Tuesday Blitz March 28 Early 2023"]
[White "Grigoriants, Sergey"]
[Black "Sarana, Alexey"]
[WhiteFideId "4130804"]
[BlackFideId "24133795"]
[WhiteElo "2502"]
[BlackElo "2714"]
[Result "0-1"]
[Round "07"]
[TimeControl "180+2"]
[Date "2023.03.28"]
[WhiteClock "0:00:15"]
[BlackClock "0:00:15"]

1. d4 {[%clk 0:02:55]}  Nf6 {[%clk 0:01:50]} 2. c4 {[%clk 0:02:30]}  e6 {[%clk 0:01:49]} 3. Nf3 {[%clk 0:02:28]}  d5 {[%clk 0:01:49]} 4. Nc3 {[%clk 0:02:26]}  Nbd7 {[%clk 0:01:50]} 5. Bf4 {[%clk 0:02:18]}  Bb4 {[%clk 0:01:48]} 6. e3 {[%clk 0:02:14]}  c5 {[%clk 0:01:47]} 7. Nd2 {[%clk 0:01:49]}  cxd4 {[%clk 0:01:47]} 8. exd4 {[%clk 0:01:49]}  O-O {[%clk 0:01:45]} 9. Qc2 {[%clk 0:01:35]}  Re8 {[%clk 0:01:44]} 10. a3 {[%clk 0:01:29]}  Ba5 {[%clk 0:01:30]} 11. Be2 {[%clk 0:01:22]}  e5 {[%clk 0:01:29]} 12. Be3 {[%clk 0:01:05]}  Ng4 {[%clk 0:00:55]} 13. Bxg4 {[%clk 0:00:28]}  exd4 {[%clk 0:00:55]} 14. O-O {[%clk 0:00:28]}  dxe3 {[%clk 0:00:53]} 15. fxe3 {[%clk 0:00:29]}  Nf6 {[%clk 0:00:50]} 16. Bf3 {[%clk 0:00:24]}  Be6 {[%clk 0:00:25]} 17. Rad1 {[%clk 0:00:20]}  Rc8 {[%clk 0:00:24]} 18. b4 {[%clk 0:00:19]}  Bb6 {[%clk 0:00:21]} 19. c5 {[%clk 0:00:15]}  Bc7 {[%clk 0:00:21]} 20. Nb5 {[%clk 0:00:16]}  Bb8 {[%clk 0:00:20]} 21. Nc4 {[%clk 0:00:16]}  Qe7 {[%clk 0:00:16]} 22. Ncd6 {[%clk 0:00:15]}  Bxd6 {[%clk 0:00:15]} 23. Nxd6 {[%clk 0:00:15]}  Qxd6 {[%clk 0:00:15]} 0-1


[Site "https://www.chess.com"]

[Event "Titled Tuesday Blitz March 28 Early 2023"]
[White "Vasquez Schroeder, Rodrigo"]
[Black "Paravyan, David"]
[WhiteFideId "3400042"]
[BlackFideId "4194985"]
[WhiteElo "2600"]
[BlackElo "2577"]
[Result "1-0"]
[Round "07"]
[TimeControl "180+2"]
[Date "2023.03.28"]
[WhiteClock "0:01:02"]
[BlackClock "0:00:02"]

1. d4 {[%clk 0:03:00]}  Nf6 {[%clk 0:02:59]} 2. Nf3 {[%clk 0:03:00]}  g6 {[%clk 0:02:59]} 3. c4 {[%clk 0:03:00]}  Bg7 {[%clk 0:03:00]} 4. g3 {[%clk 0:03:00]}  c6 {[%clk 0:02:59]} 5. Bg2 {[%clk 0:03:00]}  d5 {[%clk 0:03:00]} 6. cxd5 {[%clk 0:03:00]}  cxd5 {[%clk 0:02:59]} 7. Ne5 {[%clk 0:03:01]}  O-O {[%clk 0:02:57]} 8. Nc3 {[%clk 0:02:59]}  Nc6 {[%clk 0:02:58]} 9. Nxc6 {[%clk 0:02:57]}  bxc6 {[%clk 0:02:59]} 10. O-O {[%clk 0:02:57]}  Bf5 {[%clk 0:02:57]} 11. Bf4 {[%clk 0:02:57]}  h5 {[%clk 0:02:55]} 12. Qd2 {[%clk 0:02:47]}  h4 {[%clk 0:02:51]} 13. Rac1 {[%clk 0:02:44]}  h3 {[%clk 0:02:51]} 14. Bf3 {[%clk 0:02:44]}  Ne4 {[%clk 0:02:51]} 15. Bxe4 {[%clk 0:02:43]}  dxe4 {[%clk 0:02:52]} 16. Rfd1 {[%clk 0:02:42]}  Qa5 {[%clk 0:02:41]} 17. Bh6 {[%clk 0:02:42]}  Rab8 {[%clk 0:02:16]} 18. Bxg7 {[%clk 0:02:40]}  Kxg7 {[%clk 0:02:16]} 19. b3 {[%clk 0:02:40]}  Rfd8 {[%clk 0:02:13]} 20. Qe3 {[%clk 0:02:36]}  e5 {[%clk 0:02:00]} 21. dxe5 {[%clk 0:02:02]}  Qxe5 {[%clk 0:02:01]} 22. f3 {[%clk 0:02:00]}  c5 {[%clk 0:01:50]} 23. g4 {[%clk 0:01:56]}  Be6 {[%clk 0:01:34]} 24. Nxe4 {[%clk 0:01:42]}  Rd4 {[%clk 0:01:13]} 25. Rxd4 {[%clk 0:01:40]}  cxd4 {[%clk 0:01:12]} 26. Qg5 {[%clk 0:01:41]}  Rb5 {[%clk 0:00:56]} 27. Qxe5+ {[%clk 0:01:40]}  Rxe5 {[%clk 0:00:57]} 28. Rc5 {[%clk 0:01:40]}  Bd5 {[%clk 0:00:36]} 29. Kf2 {[%clk 0:01:34]}  f6 {[%clk 0:00:20]} 30. Rc7+ {[%clk 0:01:31]}  Kh6 {[%clk 0:00:08]} 31. Nxf6 {[%clk 0:01:31]}  Kg5 {[%clk 0:00:02]} 32. Nxd5 {[%clk 0:01:28]}  Rxd5 {[%clk 0:00:03]} 33. b4 {[%clk 0:01:28]}  d3 {[%clk 0:00:02]} 34. Rc1 {[%clk 0:01:18]}  d2 {[%clk 0:00:02]} 35. Rd1 {[%clk 0:01:18]}  Kh4 {[%clk 0:00:02]} 36. e3 {[%clk 0:01:17]}  a5 {[%clk 0:00:01]} 37. bxa5 {[%clk 0:01:16]}  g5 {[%clk 0:00:01]} 38. Ke2 {[%clk 0:01:08]}  Rxa5 {[%clk 0:00:02]} 39. Rxd2 {[%clk 0:01:04]}  Rxa2 {[%clk 0:00:02]} 40. f4 {[%clk 0:01:04]}  Ra1 {[%clk 0:00:02]} 41. fxg5 {[%clk 0:01:01]}  Kxg5 {[%clk 0:00:02]} 42. Kf3 {[%clk 0:01:02]}  Rf1+ {[%clk 0:00:01]} 43. Kg3 {[%clk 0:01:02]}  Rg1+ {[%clk 0:00:02]} 44. Kxh3 {[%clk 0:01:02]} 1-0


[Site "https://www.chess.com"]

[Event "Titled Tuesday Blitz March 28 Early 2023"]
[White "Harsha Bharathakoti"]
[Black "Yoo, Christopher Woojin"]
[WhiteFideId "5078776"]
[BlackFideId "30909694"]
[WhiteElo "2481"]
[BlackElo "2519"]
[Result "0-1"]
[Round "07"]
[TimeControl "180+2"]
[Date "2023.03.28"]
[WhiteClock "0:00:01"]
[BlackClock "0:00:24"]

1. c4 {[%clk 0:03:00]}  e5 {[%clk 0:02:58]} 2. Nc3 {[%clk 0:03:00]}  Bb4 {[%clk 0:02:58]} 3. Nd5 {[%clk 0:03:00]}  a5 {[%clk 0:02:59]} 4. Nf3 {[%clk 0:02:54]}  d6 {[%clk 0:02:49]} 5. a3 {[%clk 0:02:52]}  Bc5 {[%clk 0:02:49]} 6. e3 {[%clk 0:02:53]}  c6 {[%clk 0:02:48]} 7. d4 {[%clk 0:02:54]}  Ba7 {[%clk 0:02:48]} 8. Nc3 {[%clk 0:02:54]}  Qe7 {[%clk 0:02:45]} 9. Be2 {[%clk 0:02:44]}  Nf6 {[%clk 0:02:44]} 10. h3 {[%clk 0:02:36]}  O-O {[%clk 0:02:43]} 11. Qc2 {[%clk 0:02:25]}  e4 {[%clk 0:02:32]} 12. Nd2 {[%clk 0:02:24]}  d5 {[%clk 0:02:30]} 13. g4 {[%clk 0:02:19]}  Be6 {[%clk 0:02:28]} 14. b3 {[%clk 0:02:05]}  Nbd7 {[%clk 0:02:27]} 15. Bb2 {[%clk 0:02:03]}  Rfc8 {[%clk 0:02:18]} 16. c5 {[%clk 0:01:51]}  Bb8 {[%clk 0:02:15]} 17. b4 {[%clk 0:01:46]}  axb4 {[%clk 0:02:15]} 18. axb4 {[%clk 0:01:47]}  Rxa1+ {[%clk 0:02:15]} 19. Bxa1 {[%clk 0:01:48]}  Bc7 {[%clk 0:02:14]} 20. Bb2 {[%clk 0:01:35]}  Ra8 {[%clk 0:02:13]} 21. Nb3 {[%clk 0:01:29]}  Ne8 {[%clk 0:02:01]} 22. h4 {[%clk 0:01:26]}  f5 {[%clk 0:01:59]} 23. gxf5 {[%clk 0:01:23]}  Bxf5 {[%clk 0:01:59]} 24. b5 {[%clk 0:01:23]}  Qf7 {[%clk 0:01:54]} 25. h5 {[%clk 0:01:20]}  Nef6 {[%clk 0:01:52]} 26. b6 {[%clk 0:01:11]}  Bd8 {[%clk 0:01:51]} 27. Qd1 {[%clk 0:01:06]}  Nf8 {[%clk 0:01:36]} 28. Kd2 {[%clk 0:01:05]}  Ne6 {[%clk 0:01:30]} 29. Rg1 {[%clk 0:00:56]}  Nd7 {[%clk 0:01:28]} 30. Kc1 {[%clk 0:00:51]}  Bh4 {[%clk 0:01:26]} 31. Rg2 {[%clk 0:00:52]}  Bh3 {[%clk 0:00:55]} 32. Rh2 {[%clk 0:00:50]}  Ng5 {[%clk 0:00:54]} 33. Qh1 {[%clk 0:00:40]}  Qf5 {[%clk 0:00:51]} 34. Nd1 {[%clk 0:00:40]}  Nf6 {[%clk 0:00:42]} 35. Nd2 {[%clk 0:00:26]}  Ng4 {[%clk 0:00:29]} 36. Rxh3 {[%clk 0:00:22]}  Nxf2 {[%clk 0:00:29]} 37. Nxf2 {[%clk 0:00:22]}  Bxf2 {[%clk 0:00:30]} 38. Rh2 {[%clk 0:00:11]}  Bxe3 {[%clk 0:00:31]} 39. Qf1 {[%clk 0:00:08]}  Nf3 {[%clk 0:00:25]} 40. Bxf3 {[%clk 0:00:05]}  exf3 {[%clk 0:00:26]} 41. Rh3 {[%clk 0:00:01]}  Ra2 {[%clk 0:00:24]} 42. Rxf3 {[%clk 0:00:01]}  Bxd2+ {[%clk 0:00:24]} 0-1


[Site "https://www.chess.com"]

[Event "Titled Tuesday Blitz March 28 Early 2023"]
[White "Makarian, Rudik"]
[Black "Koustav, Chatterjee"]
[WhiteFideId "44105681"]
[BlackFideId "25073060"]
[WhiteElo "2436"]
[BlackElo "2432"]
[Result "0-1"]
[Round "07"]
[TimeControl "180+2"]
[Date "2023.03.28"]
[WhiteClock "0:00:07"]
[BlackClock "0:00:15"]

1. d4 {[%clk 0:03:00]}  Nf6 {[%clk 0:03:00]} 2. c4 {[%clk 0:03:01]}  e6 {[%clk 0:03:00]} 3. Nf3 {[%clk 0:03:01]}  d5 {[%clk 0:03:00]} 4. Nc3 {[%clk 0:03:01]}  Bb4 {[%clk 0:02:55]} 5. Qa4+ {[%clk 0:03:01]}  Nc6 {[%clk 0:02:55]} 6. Bd2 {[%clk 0:03:02]}  O-O {[%clk 0:02:51]} 7. a3 {[%clk 0:03:02]}  Bxc3 {[%clk 0:02:48]} 8. Bxc3 {[%clk 0:03:03]}  Ne4 {[%clk 0:02:48]} 9. e3 {[%clk 0:03:02]}  Nxc3 {[%clk 0:02:32]} 10. bxc3 {[%clk 0:03:02]}  dxc4 {[%clk 0:02:27]} 11. Bxc4 {[%clk 0:02:58]}  Ne7 {[%clk 0:02:27]} 12. O-O {[%clk 0:02:53]}  c5 {[%clk 0:02:27]} 13. Ne5 {[%clk 0:02:25]}  Qc7 {[%clk 0:02:24]} 14. Bd3 {[%clk 0:01:53]}  b6 {[%clk 0:02:01]} 15. Qc2 {[%clk 0:01:41]}  h6 {[%clk 0:01:58]} 16. Bh7+ {[%clk 0:01:34]}  Kh8 {[%clk 0:01:57]} 17. Be4 {[%clk 0:01:34]}  Rb8 {[%clk 0:01:47]} 18. Qe2 {[%clk 0:01:28]}  Bb7 {[%clk 0:01:36]} 19. Bxb7 {[%clk 0:01:28]}  Rxb7 {[%clk 0:01:36]} 20. a4 {[%clk 0:01:24]}  Kg8 {[%clk 0:01:30]} 21. Rfc1 {[%clk 0:01:23]}  Rc8 {[%clk 0:01:27]} 22. h4 {[%clk 0:01:20]}  cxd4 {[%clk 0:01:25]} 23. cxd4 {[%clk 0:01:21]}  Qxc1+ {[%clk 0:01:18]} 24. Rxc1 {[%clk 0:01:22]}  Rxc1+ {[%clk 0:01:19]} 25. Kh2 {[%clk 0:01:22]}  Rbc7 {[%clk 0:01:19]} 26. Qf3 {[%clk 0:01:16]}  Nd5 {[%clk 0:01:19]} 27. h5 {[%clk 0:01:08]}  Nf6 {[%clk 0:01:11]} 28. Qa8+ {[%clk 0:01:01]}  Kh7 {[%clk 0:01:11]} 29. Qf8 {[%clk 0:00:55]}  Nd7 {[%clk 0:00:57]} 30. Qxf7 {[%clk 0:00:32]}  Nxe5 {[%clk 0:00:57]} 31. Qxe6 {[%clk 0:00:32]}  Nd7 {[%clk 0:00:52]} 32. d5 {[%clk 0:00:26]}  Nf6 {[%clk 0:00:45]} 33. e4 {[%clk 0:00:26]}  Re1 {[%clk 0:00:21]} 34. f3 {[%clk 0:00:27]}  Rcc1 {[%clk 0:00:20]} 35. g4 {[%clk 0:00:13]}  Re2+ {[%clk 0:00:11]} 36. Kg3 {[%clk 0:00:13]}  Rc3 {[%clk 0:00:11]} 37. e5 {[%clk 0:00:10]}  Ne4+ {[%clk 0:00:10]} 38. Kf4 {[%clk 0:00:10]}  Rxf3+ {[%clk 0:00:10]} 39. Kxf3 {[%clk 0:00:09]}  Ng5+ {[%clk 0:00:11]} 40. Kxe2 {[%clk 0:00:10]}  Nxe6 {[%clk 0:00:12]} 41. dxe6 {[%clk 0:00:08]}  Kg8 {[%clk 0:00:12]} 42. Kd3 {[%clk 0:00:08]}  Kf8 {[%clk 0:00:12]} 43. Kc4 {[%clk 0:00:07]}  a6 {[%clk 0:00:09]} 44. Kd5 {[%clk 0:00:06]}  Ke7 {[%clk 0:00:09]} 45. Kc6 {[%clk 0:00:04]}  b5 {[%clk 0:00:10]} 46. axb5 {[%clk 0:00:04]}  axb5 {[%clk 0:00:11]} 47. Kxb5 {[%clk 0:00:05]}  Kxe6 {[%clk 0:00:11]} 48. Kc6 {[%clk 0:00:04]}  Kxe5 {[%clk 0:00:12]} 49. Kd7 {[%clk 0:00:05]}  Kf4 {[%clk 0:00:13]} 50. Ke6 {[%clk 0:00:05]}  Kxg4 {[%clk 0:00:13]} 51. Kf7 {[%clk 0:00:06]}  Kxh5 {[%clk 0:00:14]} 52. Kxg7 {[%clk 0:00:07]}  Kg5 {[%clk 0:00:15]} 0-1


[Site "https://www.chess.com"]

[Event "Titled Tuesday Blitz March 28 Early 2023"]
[White "Chigaev, Maksim"]
[Black "Kramnik, Vladimir"]
[WhiteFideId "4108116"]
[BlackFideId "4101588"]
[WhiteElo "2547"]
[BlackElo "2712"]
[Result "1/2-1/2"]
[Round "07"]
[TimeControl "180+2"]
[Date "2023.03.28"]
[WhiteClock "0:00:05"]
[BlackClock "0:00:04"]

1. Nf3 {[%clk 0:03:00]}  Nf6 {[%clk 0:02:59]} 2. c4 {[%clk 0:03:01]}  c5 {[%clk 0:02:57]} 3. Nc3 {[%clk 0:03:00]}  e6 {[%clk 0:02:57]} 4. g3 {[%clk 0:02:59]}  b6 {[%clk 0:02:57]} 5. Bg2 {[%clk 0:03:00]}  Bb7 {[%clk 0:02:58]} 6. O-O {[%clk 0:03:00]}  Be7 {[%clk 0:02:58]} 7. d4 {[%clk 0:02:52]}  cxd4 {[%clk 0:02:57]} 8. Qxd4 {[%clk 0:02:53]}  d6 {[%clk 0:02:53]} 9. Rd1 {[%clk 0:02:44]}  O-O {[%clk 0:02:51]} 10. Bg5 {[%clk 0:02:43]}  Nbd7 {[%clk 0:02:47]} 11. Nb5 {[%clk 0:02:43]}  d5 {[%clk 0:02:46]} 12. cxd5 {[%clk 0:02:38]}  Bxd5 {[%clk 0:02:46]} 13. Nc3 {[%clk 0:02:38]}  Bc6 {[%clk 0:02:34]} 14. Rac1 {[%clk 0:02:31]}  Rc8 {[%clk 0:02:34]} 15. Ne5 {[%clk 0:02:09]}  Nxe5 {[%clk 0:02:27]} 16. Qxe5 {[%clk 0:02:09]}  Qe8 {[%clk 0:02:27]} 17. Bxc6 {[%clk 0:01:50]}  Rxc6 {[%clk 0:02:27]} 18. Bf4 {[%clk 0:01:42]}  Rc5 {[%clk 0:02:20]} 19. Qd4 {[%clk 0:01:22]}  Qa8 {[%clk 0:01:51]} 20. Bd6 {[%clk 0:01:09]}  Bxd6 {[%clk 0:01:49]} 21. Qxd6 {[%clk 0:01:10]}  h5 {[%clk 0:01:44]} 22. f3 {[%clk 0:01:05]}  Rfc8 {[%clk 0:01:43]} 23. Kf2 {[%clk 0:01:02]}  Qb7 {[%clk 0:01:35]} 24. Qd4 {[%clk 0:00:59]}  Qc6 {[%clk 0:01:31]} 25. a3 {[%clk 0:00:47]}  Rc4 {[%clk 0:01:28]} 26. Qd6 {[%clk 0:00:40]}  Qb7 {[%clk 0:01:26]} 27. Qd2 {[%clk 0:00:30]}  b5 {[%clk 0:01:23]} 28. Na2 {[%clk 0:00:17]}  Nd5 {[%clk 0:01:22]} 29. Rxc4 {[%clk 0:00:13]}  bxc4 {[%clk 0:01:22]} 30. Nc3 {[%clk 0:00:13]}  Qb6+ {[%clk 0:01:22]} 31. Qd4 {[%clk 0:00:09]}  Qxb2 {[%clk 0:00:53]} 32. Nxd5 {[%clk 0:00:09]}  Qxd4+ {[%clk 0:00:53]} 33. Rxd4 {[%clk 0:00:10]}  exd5 {[%clk 0:00:53]} 34. Rxd5 {[%clk 0:00:11]}  c3 {[%clk 0:00:54]} 35. Rd1 {[%clk 0:00:11]}  c2 {[%clk 0:00:53]} 36. Rc1 {[%clk 0:00:12]}  Rc3 {[%clk 0:00:53]} 37. Ke1 {[%clk 0:00:10]}  g5 {[%clk 0:00:49]} 38. Kd2 {[%clk 0:00:10]}  Rxa3 {[%clk 0:00:49]} 39. Rxc2 {[%clk 0:00:11]}  Kg7 {[%clk 0:00:49]} 40. Rc5 {[%clk 0:00:11]}  Kg6 {[%clk 0:00:49]} 41. Rc6+ {[%clk 0:00:10]}  f6 {[%clk 0:00:49]} 42. Ke1 {[%clk 0:00:08]}  Ra2 {[%clk 0:00:48]} 43. Kf2 {[%clk 0:00:08]}  a5 {[%clk 0:00:48]} 44. Ra6 {[%clk 0:00:07]}  Kf5 {[%clk 0:00:46]} 45. h4 {[%clk 0:00:06]}  gxh4 {[%clk 0:00:44]} 46. gxh4 {[%clk 0:00:07]}  Ke5 {[%clk 0:00:41]} 47. Rb6 {[%clk 0:00:07]}  Kf5 {[%clk 0:00:31]} 48. Rb5+ {[%clk 0:00:07]}  Kg6 {[%clk 0:00:31]} 49. Rc5 {[%clk 0:00:06]}  a4 {[%clk 0:00:27]} 50. Ra5 {[%clk 0:00:06]}  a3 {[%clk 0:00:27]} 51. Ke3 {[%clk 0:00:07]}  Ra1 {[%clk 0:00:23]} 52. Kf4 {[%clk 0:00:06]}  a2 {[%clk 0:00:17]} 53. e4 {[%clk 0:00:06]}  Kg7 {[%clk 0:00:11]} 54. Kf5 {[%clk 0:00:03]}  Rf1 {[%clk 0:00:09]} 55. Ra7+ {[%clk 0:00:03]}  Kh6 {[%clk 0:00:09]} 56. Rxa2 {[%clk 0:00:04]}  Rxf3+ {[%clk 0:00:09]} 57. Ke6 {[%clk 0:00:05]}  Rf4 {[%clk 0:00:09]} 58. Re2 {[%clk 0:00:04]}  Kg6 {[%clk 0:00:08]} 59. Rg2+ {[%clk 0:00:05]}  Kh6 {[%clk 0:00:08]} 60. Re2 {[%clk 0:00:05]}  Kg7 {[%clk 0:00:08]} 61. Rg2+ {[%clk 0:00:06]}  Rg4 {[%clk 0:00:07]} 62. Re2 {[%clk 0:00:05]}  Rxh4 {[%clk 0:00:07]} 63. Kf5 {[%clk 0:00:05]}  Rg4 {[%clk 0:00:07]} 64. e5 {[%clk 0:00:05]}  Rg5+ {[%clk 0:00:06]} 65. Kf4 {[%clk 0:00:06]}  Rg4+ {[%clk 0:00:05]} 66. Kf5 {[%clk 0:00:05]}  fxe5 {[%clk 0:00:05]} 67. Rxe5 {[%clk 0:00:05]}  Rg1 {[%clk 0:00:05]} 68. Kf4 {[%clk 0:00:05]}  Kg6 {[%clk 0:00:05]} 69. Re6+ {[%clk 0:00:05]}  Kg7 {[%clk 0:00:05]} 70. Re5 {[%clk 0:00:05]}  Kh6 {[%clk 0:00:04]} 71. Re6+ {[%clk 0:00:06]}  Kh7 {[%clk 0:00:04]} 72. Re5 {[%clk 0:00:03]}  Rh1 {[%clk 0:00:04]} 73. Kg3 {[%clk 0:00:03]}  Kg6 {[%clk 0:00:03]} 74. Kg2 {[%clk 0:00:03]}  Kf6 {[%clk 0:00:03]} 75. Ra5 {[%clk 0:00:03]}  Rb1 {[%clk 0:00:03]} 76. Rxh5 {[%clk 0:00:03]}  Rb2+ {[%clk 0:00:03]} 77. Kg3 {[%clk 0:00:03]}  Rb3+ {[%clk 0:00:03]} 78. Kg2 {[%clk 0:00:04]}  Rb2+ {[%clk 0:00:03]} 79. Kg3 {[%clk 0:00:04]}  Rb3+ {[%clk 0:00:03]} 80. Kg2 {[%clk 0:00:05]}  Rb2+ {[%clk 0:00:04]} 1/2-1/2


[Site "https://www.chess.com"]

[Event "Titled Tuesday Blitz March 28 Early 2023"]
[White "Bluebaum, Matthias"]
[Black "demon64fields"]
[WhiteFideId "24651516"]
[WhiteElo "2638"]
[BlackElo "2861"]
[Result "1/2-1/2"]
[Round "07"]
[TimeControl "180+2"]
[Date "2023.03.28"]
[WhiteClock "0:00:06"]
[BlackClock "0:00:21"]

1. d4 {[%clk 0:03:00]}  g6 {[%clk 0:03:00]} 2. c4 {[%clk 0:03:00]}  Bg7 {[%clk 0:03:00]} 3. e4 {[%clk 0:03:00]}  Nc6 {[%clk 0:03:00]} 4. Nf3 {[%clk 0:03:00]}  e5 {[%clk 0:03:00]} 5. Bg5 {[%clk 0:03:00]}  f6 {[%clk 0:02:59]} 6. Be3 {[%clk 0:03:01]}  d6 {[%clk 0:02:59]} 7. Nc3 {[%clk 0:03:00]}  Nh6 {[%clk 0:02:58]} 8. dxe5 {[%clk 0:03:00]}  fxe5 {[%clk 0:02:56]} 9. h3 {[%clk 0:03:00]}  O-O {[%clk 0:02:55]} 10. c5 {[%clk 0:02:59]}  Be6 {[%clk 0:02:50]} 11. Ng5 {[%clk 0:02:57]}  Qe7 {[%clk 0:02:50]} 12. Nd5 {[%clk 0:02:44]}  Bxd5 {[%clk 0:02:47]} 13. Qxd5+ {[%clk 0:02:45]}  Nf7 {[%clk 0:02:42]} 14. Bc4 {[%clk 0:02:30]}  Nd8 {[%clk 0:02:41]} 15. cxd6 {[%clk 0:02:22]}  cxd6 {[%clk 0:02:35]} 16. O-O {[%clk 0:02:12]}  Kh8 {[%clk 0:02:34]} 17. Nxf7+ {[%clk 0:02:09]}  Nxf7 {[%clk 0:02:35]} 18. Rac1 {[%clk 0:02:08]}  Bh6 {[%clk 0:02:27]} 19. Bxh6 {[%clk 0:01:58]}  Nxh6 {[%clk 0:02:28]} 20. Qe6 {[%clk 0:01:51]}  Rfe8 {[%clk 0:02:11]} 21. Qxe7 {[%clk 0:01:48]}  Rxe7 {[%clk 0:02:12]} 22. Rfd1 {[%clk 0:01:47]}  Rd8 {[%clk 0:02:12]} 23. Rc3 {[%clk 0:01:37]}  Rc7 {[%clk 0:02:08]} 24. Rdd3 {[%clk 0:01:20]}  Rdc8 {[%clk 0:01:56]} 25. Be6 {[%clk 0:00:58]}  Rxc3 {[%clk 0:01:55]} 26. bxc3 {[%clk 0:00:59]}  Rc6 {[%clk 0:01:52]} 27. Rf3 {[%clk 0:00:45]}  Kg7 {[%clk 0:01:50]} 28. g4 {[%clk 0:00:43]}  Rc7 {[%clk 0:01:48]} 29. g5 {[%clk 0:00:39]}  Nf7 {[%clk 0:01:42]} 30. h4 {[%clk 0:00:40]}  Nd8 {[%clk 0:01:36]} 31. Bd5 {[%clk 0:00:39]}  Nc6 {[%clk 0:01:24]} 32. Rf6 {[%clk 0:00:38]}  Rd7 {[%clk 0:01:23]} 33. Kg2 {[%clk 0:00:38]}  a6 {[%clk 0:01:13]} 34. Kg3 {[%clk 0:00:38]}  Na7 {[%clk 0:01:12]} 35. a4 {[%clk 0:00:37]}  Nc8 {[%clk 0:01:11]} 36. Be6 {[%clk 0:00:34]}  Rc7 {[%clk 0:01:07]} 37. Bxc8 {[%clk 0:00:34]}  Rxc8 {[%clk 0:01:07]} 38. Rxd6 {[%clk 0:00:34]}  Rxc3+ {[%clk 0:01:07]} 39. f3 {[%clk 0:00:35]}  Ra3 {[%clk 0:00:36]} 40. Rd7+ {[%clk 0:00:35]}  Kg8 {[%clk 0:00:37]} 41. Rxb7 {[%clk 0:00:32]}  Rxa4 {[%clk 0:00:37]} 42. Ra7 {[%clk 0:00:30]}  Ra5 {[%clk 0:00:34]} 43. Re7 {[%clk 0:00:29]}  Kh8 {[%clk 0:00:34]} 44. Kg4 {[%clk 0:00:28]}  Rb5 {[%clk 0:00:31]} 45. h5 {[%clk 0:00:27]}  gxh5+ {[%clk 0:00:28]} 46. Kxh5 {[%clk 0:00:28]}  a5 {[%clk 0:00:28]} 47. Ra7 {[%clk 0:00:28]}  Kg8 {[%clk 0:00:28]} 48. Kg4 {[%clk 0:00:29]}  Kh8 {[%clk 0:00:28]} 49. Kf5 {[%clk 0:00:27]}  Rb3 {[%clk 0:00:26]} 50. Ra8+ {[%clk 0:00:16]}  Kg7 {[%clk 0:00:26]} 51. Ra7+ {[%clk 0:00:17]}  Kg8 {[%clk 0:00:27]} 52. Kxe5 {[%clk 0:00:13]}  Rxf3 {[%clk 0:00:27]} 53. Ke6 {[%clk 0:00:13]}  a4 {[%clk 0:00:23]} 54. Rxa4 {[%clk 0:00:12]}  Kg7 {[%clk 0:00:23]} 55. e5 {[%clk 0:00:11]}  Kg6 {[%clk 0:00:23]} 56. Rg4 {[%clk 0:00:11]}  Ra3 {[%clk 0:00:22]} 57. Rg1 {[%clk 0:00:09]}  Ra6+ {[%clk 0:00:22]} 58. Kd7 {[%clk 0:00:09]}  Kf5 {[%clk 0:00:19]} 59. e6 {[%clk 0:00:05]}  Ra7+ {[%clk 0:00:20]} 60. Kd6 {[%clk 0:00:06]}  Ra6+ {[%clk 0:00:19]} 61. Kd7 {[%clk 0:00:06]}  Ra7+ {[%clk 0:00:20]} 62. Kd6 {[%clk 0:00:07]}  Ra6+ {[%clk 0:00:21]} 63. Kd7 {[%clk 0:00:06]} 1/2-1/2


[Site "https://www.chess.com"]